[Event "Susha Chess Blitz Women 2022"]
[Site "Shusha"]
[Date "2022.09.24"]
[Round "1"]
[White "Dzagnidze, Nana"]
[Black "Mammadzada, Gunay"]
[Result "0-1"]
[ECO "A34"]
[WhiteElo "2526"]
[BlackElo "2473"]
[Annotator "TA"]
[PlyCount "39"]
[EventDate "2022.09.24"]
[EventType "tourn"]
[EventCountry "AZE"]
[SourceTitle "playchess.com"]
[Source "ChessBase"]
[SourceQuality "1"]
[TimeControl "180+2"]

{[%evp 9,39,-10,0,-8,-20,-24,-2,-15,-20,-81,-82,-127,-125,-120,-118,-124,-126,-159,-166,-140,-138,-199,-195,-204,-194,-281,-264,-271,-271,-317,-247,-284]} 1. c4 {[%emt 0:00:03]} c5 {[%emt 0:00:01]} 2. Nc3 {[%emt 0:00:02]} g6 {[%emt 0:00:02]} 3. Nf3 {[%emt 0:00:02]} Bg7 {[%emt 0:00:02]} 4. e3 {[%emt 0:00:09]} Nf6 {[%emt 0:00:12]} 5. b3 {[%emt 0:00:33]} d5 {[%emt 0:00:16]} 6. cxd5 {[%emt 0:00:02] A34: Symmetrical English: 2 Nc3, lines with ...d5.} (6. Bb2 $5 {[%cal Rc3d5]}) 6... Nxd5 {[%emt 0:00:01]} 7. Bb2 {[%emt 0:00:01]} Nb4 {[%emt 0:00:15] [#]} 8. d3 $146 {[%emt 0:01:04] The position is equal.} ({Predecessor:} 8. Bb5+ Bd7 9. Bc4 Bf5 10. O-O Bd3 11. Bxd3 Nxd3 12. Rb1 Nc6 13. Ba1 O-O 14. Ne1 {½-½ (22) Meszaros,M (2391)-Ivic,M (2231) Novi Sad 2016}) 8... Bf5 {[%emt 0:00:05][%cal Rf5d3]} 9. e4 {[%emt 0:00:02]} (9. Na4 $11 {keeps the balance.} Bxb2 10. Nxb2) 9... Bg4 $17 {[%emt 0:00:01]} 10. Be2 {[%emt 0:00:57]} Bxf3 {[%emt 0:00:23] Black has more active pieces. The white rooks are badly placed.} 11. gxf3 {[%emt 0:00:01]} N8c6 {[%emt 0:00:11]} 12. a3 {[%emt 0:00:03]} Na6 {[%emt 0:00:01][%cal Bb4a6,Ba6c7,Bc7e6,Be6d4][%mdl 32]} 13. O-O {[%emt 0:00:02]} Nc7 {[%emt 0:00:40]} 14. Rb1 {[%emt 0:00:05]} O-O {[%emt 0:00:25]} 15. b4 {[%emt 0:00:11]} (15. f4 $17 {was necessary.}) 15... cxb4 $19 {[%emt 0:00:11]} 16. axb4 {[%emt 0:00:01]} Nxb4 {[%emt 0:00:05]} 17. Ba1 {[%emt 0:00:12]} (17. f4 $142) 17... a5 {[%emt 0:00:01]} 18. f4 {[%emt 0:00:03]} Ne6 {[%emt 0:00:02]} 19. Qd2 {[%emt 0:00:02]} Nd4 {[%emt 0:00:11]} 20. Bg4 {White got outplayed after the opening.  Weighted Error Value: White=0.32/Black=0.08 (flawless)} 0-1

[Event "Susha Chess Blitz Women 2022"]
[Site "Shusha"]
[Date "2022.09.24"]
[Round "1"]
[White "Efroimski, Marsel"]
[Black "Zawadzka, Jolanta"]
[Result "0-1"]
[ECO "B50"]
[WhiteElo "2462"]
[BlackElo "2401"]
[Annotator "TA"]
[PlyCount "82"]
[EventDate "2022.09.24"]
[EventType "tourn"]
[EventCountry "AZE"]
[SourceTitle "playchess.com"]
[Source "ChessBase"]
[SourceQuality "1"]
[TimeControl "180+2"]

{[%evp 9,82,10,3,13,22,22,16,-35,-40,-29,-17,-30,39,-49,-53,-143,-32,-29,-27,-30,-30,-59,-67,-65,-63,-63,-67,-74,-39,-40,-33,-76,-76,-143,-143,-147,-124,-228,-224,-222,-218,-209,-209,-215,-209,-304,-151,-5469,-5406,-1795,-1833,-5377,-4579,-29975,-29976,-29979,-29979,-29980,-29981,-29983,-29984,-29984,-29985,-29986,-29987,-29988,-29989,-29990,-29991,-29991,-29991,-29995,-29994,-29998,-29996]} 1. e4 {[%emt 0:00:00]} c5 {[%emt 0:00:01]} 2. Nf3 {[%emt 0:00:03]} d6 {[%emt 0:00:01]} 3. Nc3 {[%emt 0:00:01]} Nf6 {[%emt 0:00:03]} 4. e5 {[%emt 0:00:01]} dxe5 {[%emt 0:00:08]} 5. Nxe5 {[%emt 0:00:01]} a6 {[%emt 0:00:20]} 6. g3 {[%emt 0:00:01] B50: Sicilian: 2...d6, Miscellaneous.} Qc7 {[%emt 0:00:02] 6...Qd6 injects fresh life into this line.} 7. d4 {[%emt 0:00:18]} e6 {[%emt 0:00:09]} 8. Bg2 {[%emt 0:00:04]} (8. Nc4 $11) 8... cxd4 $1 $15 {[%emt 0:00:04]} 9. Qxd4 {[%emt 0:00:13] Black must now prevent Bf4.} Bc5 $1 {[%emt 0:00:05]} 10. Qa4+ {[%emt 0:00:22] [#]} Nbd7 $146 {[%emt 0:00:02]} (10... b5 $11 11. Qf4 Bb7 12. Bxb7 Qxb7) ({Predecessor:} 10... b5 11. Qf4 Bb7 12. Bxb7 Qxb7 13. O-O {½-½ (13) Vedder,H (2385)-Aagaard,J (2255) Vejen 1993}) 11. Nxd7 {[%emt 0:00:57]} (11. Nd3 $14) 11... Bxd7 {[%emt 0:00:01]} 12. Qh4 {[%emt 0:00:07]} ({Better is} 12. Qb3 $15) 12... O-O {[%emt 0:00:10]} (12... Qe5+ $17 13. Ne2 Bb5) 13. O-O $1 {[%emt 0:00:07]} Bc6 {[%emt 0:00:03]} 14. Bf4 {[%emt 0:00:31]} Qb6 {[%emt 0:00:34]} 15. Bxc6 {[%emt 0:00:02]} Qxc6 {[%emt 0:00:02]} 16. Be5 {[%emt 0:00:07] Against Bd4} Be7 {[%emt 0:00:20][%cal Of6d7]} 17. Qh3 {[%emt 0:00:24]} Rfd8 {[%emt 0:00:04]} 18. Rad1 {[%emt 0:00:02]} b5 {[%emt 0:00:04] Threatens to win with ...b4.} 19. Qg2 $1 {[%emt 0:00:02]} Qc5 {[%emt 0:00:15]} 20. Bxf6 {[%emt 0:00:04]} Bxf6 {[%emt 0:00:03]} 21. Ne4 {[%emt 0:00:02]} ({White should try} 21. Rxd8+ Rxd8 22. Rd1) 21... Qxc2 $17 {[%emt 0:00:12] Black is more active.} 22. Nxf6+ {[%emt 0:00:02]} gxf6 {[%emt 0:00:02]} 23. Rxd8+ {[%emt 0:00:02]} (23. Rb1 $17) 23... Rxd8 {[%emt 0:00:01][%mdl 4096] Endgame KQR-KQR} 24. Qb7 {[%emt 0:00:09]} Qxb2 {[%emt 0:00:15]} 25. Qxa6 {[%emt 0:00:02]} Rd5 {[%emt 0:00:15]} 26. a3 {[%emt 0:00:06]} Kg7 {[%emt 0:00:03]} 27. h4 {[%emt 0:00:01]} (27. Kg2 $142) 27... Qe2 {[%emt 0:00:07]} (27... Rd3 $19 {is more deadly.} 28. Qb7 Rxa3) 28. a4 $2 {[%emt 0:00:02] Now White is beyond hope.} (28. Qa5 $17) 28... Rd1 $19 {[%emt 0:00:05]} 29. Rxd1 {[%emt 0:00:03]} Qxd1+ {[%emt 0:00:01] KQ-KQ} 30. Kh2 {[%emt 0:00:01]} bxa4 {[%emt 0:00:04] [#] ( -> ...Qb3)} 31. Qa5 {[%emt 0:00:03]} Qd4 {[%emt 0:00:07] Black mates.} 32. Kg1 {[%emt 0:00:02]} Qa1+ {[%emt 0:00:13]} 33. Kh2 {[%emt 0:00:01]} a3 {[%emt 0:00:02]} 34. h5 {[%emt 0:00:02]} h6 {[%emt 0:00:02]} 35. Qa4 {[%emt 0:00:01]} f5 {[%emt 0:00:02]} 36. g4 {[%emt 0:00:02]} a2 {[%emt 0:00:02]} 37. Kg2 {[%emt 0:00:02]} Qb2 {[%emt 0:00:03]} 38. g5 {[%emt 0:00:04]} a1=Q {[%emt 0:00:07]} 39. gxh6+ {[%emt 0:00:02]} Kh7 {[%emt 0:00:01]} 40. Qd7 {[%emt 0:00:01]} Qf6 {[%emt 0:00:01]} 41. Kh2 {[%emt 0:00:02]} Qae5+ {[%emt 0:00:02] Weighted Error Value: White=0.64/Black=0.16 (very precise)} 0-1

[Event "Susha Chess Blitz Women 2022"]
[Site "Shusha"]
[Date "2022.09.24"]
[Round "1"]
[White "Arabidze, Meri"]
[Black "Ozturk Orenli, Kubra"]
[Result "1/2-1/2"]
[ECO "D26"]
[WhiteElo "2422"]
[BlackElo "2319"]
[Annotator "TA"]
[PlyCount "99"]
[EventDate "2022.09.24"]
[EventType "tourn"]
[EventCountry "AZE"]
[SourceTitle "playchess.com"]
[Source "ChessBase"]
[SourceQuality "1"]
[TimeControl "180+2"]

{[%evp 12,99,27,22,33,25,40,51,47,31,50,51,89,27,43,26,28,20,35,31,11,0,0,0,0,-15,0,0,12,0,20,20,20,17,28,10,12,0,33,35,23,36,73,74,169,155,225,196,260,175,375,364,356,366,354,355,493,483,449,458,1031,981,1006,1003,837,827,1106,313,277,0,542,537,489,273,2335,2086,29996,410,29988,29979,29979,29980,29957,0,0,0,1957,0,0,0]} 1. Nf3 {[%emt 0:00:01]} Nf6 {[%emt 0:00:01]} 2. d4 {[%emt 0:00:01]} d5 {[%emt 0:00:01]} 3. c4 {[%emt 0:00:01]} dxc4 {[%emt 0:00:01]} 4. e3 {[%emt 0:00:00]} e6 {[%emt 0:00:01]} 5. Bxc4 {[%emt 0:00:02]} Be7 {[%emt 0:00:02]} 6. O-O {[%emt 0:00:02]} O-O {[%emt 0:00:01]} 7. Qe2 {[%emt 0:00:03]} a6 {[%emt 0:00:05] D26: Queen's Gambit Accepted: 4 e3 e6 5 Bxc5 c5 sidelines.} 8. a4 {[%emt 0:00:04]} b6 {[%emt 0:00:06]} 9. Rd1 {[%emt 0:00:04]} Bb7 {[%emt 0:00:05] White is slightly better.} 10. Nc3 {[%emt 0:00:02]} Nbd7 {[%emt 0:00:14]} 11. e4 {[%emt 0:00:01]} Re8 {[%emt 0:00:50] [#]} 12. e5 $146 {[%emt 0:00:07] White is more active.} ({Better is} 12. Ng5 $16) ({Predecessor:} 12. Ne5 c5 13. Nxf7 Kxf7 14. Bxe6+ Kf8 15. e5 cxd4 16. Bg5 Qc7 17. exf6 Bxf6 18. Qg4 {1-0 (48) Rajkovic,D (2215)-Jakovljevic,Z (2068) Belgrade 2014}) 12... Nd5 $11 {[%emt 0:00:01]} 13. Nxd5 {[%emt 0:00:02]} exd5 {[%emt 0:00:01]} 14. Bd3 {[%emt 0:00:03]} Nf8 {[%emt 0:00:04]} 15. a5 {[%emt 0:00:13]} c5 {[%emt 0:00:08]} 16. b3 {[%emt 0:00:12]} b5 {[%emt 0:00:07]} 17. dxc5 {[%emt 0:00:03]} Bxc5 {[%emt 0:00:02]} 18. Bb2 {[%emt 0:00:09]} Ne6 {[%emt 0:00:05]} 19. Bf5 {[%emt 0:00:16]} Qe7 {[%emt 0:00:11][%cal Od5d4]} 20. Qc2 {[%emt 0:00:19]} g6 {[%emt 0:00:32]} 21. Bxe6 {[%emt 0:00:01]} fxe6 {[%emt 0:00:01]} 22. Bd4 {[%emt 0:00:09]} Bb4 {[%emt 0:00:07]} 23. h4 {[%emt 0:00:16]} Rac8 {[%emt 0:00:01]} 24. Qe2 {[%emt 0:00:01]} Bc3 {[%emt 0:00:11]} 25. Bxc3 {[%emt 0:00:37]} Rxc3 {[%emt 0:00:01]} 26. Rd3 {[%emt 0:00:04]} Rec8 {[%emt 0:00:05][%cal Od5d4]} 27. Rad1 {[%emt 0:00:01][%cal Oh4h5]} Qb4 {[%emt 0:00:22]} (27... d4 $16) 28. Nd4 {[%emt 0:00:05] Black must now prevent Rxc3.} Qe7 {[%emt 0:00:12]} (28... Rxd3 $16 29. Qxd3 Qxa5) 29. h5 {[%emt 0:00:05] Hoping for hxg6.} Qf7 {[%emt 0:00:10]} (29... Rxd3 {might work better.} 30. Qxd3 gxh5) 30. hxg6 {[%emt 0:00:08]} hxg6 {[%emt 0:00:01]} (30... Qxg6 31. Rxc3 Rxc3) 31. Rxc3 $18 {[%emt 0:00:05]} Rxc3 {[%emt 0:00:01]} 32. Qg4 {[%emt 0:00:01]} Bc8 {[%emt 0:00:04]} 33. Qg5 {[%emt 0:00:09]} Bd7 {[%emt 0:00:05]} 34. g3 {[%emt 0:00:16]} Rc8 {[%emt 0:00:05]} 35. Kg2 {[%emt 0:00:02]} Kg7 {[%emt 0:00:03]} (35... Rf8 $2 36. f4 Qg7 37. Rc1 $18) (35... Qg7 $142 36. Rh1 Kf7) 36. Rh1 {[%emt 0:00:05] Threatening mate with Qh6+.} Rh8 {[%emt 0:00:02] Inhibits Qh6+.} 37. Rxh8 {[%emt 0:00:10]} Kxh8 {[%emt 0:00:01][%mdl 4096] Endgame KQB-KQN} 38. Qd8+ {[%emt 0:00:04]} Kg7 {[%emt 0:00:03]} 39. Qb6 $2 {[%emt 0:00:03]} (39. Qa8 g5 40. Qxa6) 39... Bc8 {[%emt 0:00:02]} 40. Qd8 $2 {[%emt 0:00:06] Inhibits Qe7.} ({White should play} 40. b4 $18) 40... Qd7 $2 {[%emt 0:00:04][%mdl 8192]} (40... Bd7 $1 $11 {and Black is okay.} 41. Qa8 g5 42. Qxa6 g4) 41. Qf6+ {[%emt 0:00:03]} Kh7 {[%emt 0:00:00]} 42. Nf3 {[%emt 0:00:03]} (42. Qf8 $142 {Threatens to win with Nf3.} Bb7 43. b4) 42... d4 {[%emt 0:00:03]} (42... Qe8 43. Ng5+ (43. Qh4+ Kg8 $18) 43... Kg8) 43. Ng5+ {[%emt 0:00:01]} Kh6 {[%emt 0:00:02]} 44. f4 {[%emt 0:00:06]} (44. Qh8+ $142 Qh7 45. Nf7+ Kh5 46. Qxh7+ Kg4 47. Qxg6#) 44... Bb7+ {[%emt 0:00:01]} (44... Qc6+ $18 45. Nf3 Kh7) 45. Kf2 {[%emt 0:00:00]} Qc8 {[%emt 0:00:00]} 46. Nf7+ {[%emt 0:00:02]} Kh7 {[%emt 0:00:00] [#]} 47. Ng5+ $2 {[%emt 0:00:03]} (47. g4 $1 {mates} Bd5 48. Qe7 Kg8 49. Nh6+ Kh8 50. Kg3 g5 51. Nf7+ Kg8 52. Nxg5) 47... Kh6 $11 {[%emt 0:00:00]} 48. Nf7+ $2 {[%emt 0:00:03][%mdl 8192]} (48. Nxe6 $11 Qc2+ 49. Kf1 Qg2+ 50. Ke1 Qxg3+ 51. Ke2 Qe3+ 52. Kf1 Qd3+ 53. Kf2 Qe3+ 54. Kf1 Qd3+ 55. Kf2 Qe3+ 56. Kf1) 48... Kh7 $18 {[%emt 0:00:00] [#]} 49. Ng5+ $2 {[%emt 0:00:03]} ({White has to play} 49. g4 $1 $18 {White threatens Qe7 and mate.} b4 50. Qe7) 49... Kh6 $11 {[%emt 0:00:00]} 50. Nf7+ {Weighted Error Value: White=0.67/Black=0.85} 1/2-1/2

[Event "Susha Chess Blitz Women 2022"]
[Site "Shusha"]
[Date "2022.09.24"]
[Round "1"]
[White "Fataliyeva, Ulviyya"]
[Black "Mammadova, Gulnar"]
[Result "0-1"]
[ECO "A40"]
[WhiteElo "2408"]
[BlackElo "2382"]
[Annotator "TA"]
[PlyCount "89"]
[EventDate "2022.09.24"]
[EventType "tourn"]
[EventCountry "AZE"]
[SourceTitle "playchess.com"]
[Source "ChessBase"]
[SourceQuality "1"]
[TimeControl "180+2"]

{[%evp 9,89,23,26,23,43,40,42,24,13,0,-1,-6,0,-76,-90,-128,-107,-127,-133,-146,-120,-118,-128,-128,-121,-108,-108,-113,-113,-87,72,38,28,-27,0,0,8,-187,-194,-201,-202,-324,-317,-425,-339,-339,-341,-394,-414,-507,-388,-387,-359,-493,-509,-470,-193,-308,-280,-338,-311,-362,-255,-250,-252,-1139,-1139,-1532,-1503,-1392,-1357,-1261,-1261,-5493,-1058,-983,-949,-1261,-1261,-1015,-1010,-812]} 1. d4 {[%emt 0:00:01]} e6 {[%emt 0:00:01]} 2. Nf3 {[%emt 0:00:09]} f5 {[%emt 0:00:01]} 3. g3 {[%emt 0:00:02]} Nf6 {[%emt 0:00:01]} 4. Bg2 {[%emt 0:00:01]} g6 {[%emt 0:00:02]} 5. c4 {[%emt 0:00:49][%cal Bc2c4,Bc4c5][%mdl 32]} Bg7 {[%emt 0:00:01]} 6. Nc3 {[%emt 0:00:01] A81: Dutch Defence: 2 g3.} d5 {[%emt 0:00:16]} 7. Bf4 {[%emt 0:00:07]} c6 {[%emt 0:00:06]} 8. c5 {[%emt 0:00:27] [#] White is slightly better.} O-O $146 {[%emt 0:00:22][%cal Be8g8,Bg8g7,Bg7f6][%mdl 32]} ({Predecessor:} 8... Ne4 9. Qc1 b6 10. Nxe4 dxe4 11. Nd2 Qxd4 12. Nc4 Qxc5 13. Bd6 Qd5 14. Qg5 Bf8 {1-0 (42) Zschaebitz,K (2054)-Lueders,G (2166) Berlin 2006}) 9. Qc1 {[%emt 0:00:01]} b6 {[%emt 0:00:10]} 10. b4 {[%emt 0:00:01]} Ne4 {[%emt 0:00:29]} 11. Be5 {[%emt 0:00:16]} (11. Rb1 $11 {remains equal.}) 11... bxc5 $1 $17 {[%emt 0:00:10]} 12. Bxg7 {[%emt 0:00:05]} (12. bxc5 $2 Qa5 13. O-O (13. Bxg7 $2 Kxg7 14. Ne5 Qxc3+ $19) 13... Qxc3 $19) 12... Kxg7 {[%emt 0:00:01]} 13. dxc5 {[%emt 0:00:03]} Qf6 {[%emt 0:00:18]} 14. Na4 {[%emt 0:00:26]} Ba6 {[%emt 0:00:05]} 15. Qb2 {[%emt 0:00:09]} Nd7 {[%emt 0:00:12] Hoping for ...Bb5.} 16. Qxf6+ {[%emt 0:00:02]} Kxf6 {[%emt 0:00:05]} (16... Rxf6 17. Rc1) ({Weaker is} 16... Ndxf6 17. Nb2 $11 (17. Nd4 Rfe8 $15)) 17. Nd4 {[%emt 0:00:01]} e5 {[%emt 0:00:15]} 18. Nb3 {[%emt 0:00:22]} Rfb8 $1 {[%emt 0:00:06] Black is much more active. The white rooks are badly placed.} 19. a3 {[%emt 0:00:03] [#]} g5 $2 {[%emt 0:00:23]} (19... Bb5 $1 $17 {[%cal Rb5a4]} 20. Nb2 a5 21. Nxa5 {[#]} Ndxc5 $1) 20. f3 {[%emt 0:00:01]} (20. g4 $5) 20... Bb5 {[%emt 0:00:04]} 21. Nb2 {[%emt 0:00:03]} ({White should try} 21. fxe4 Bxa4 22. exd5 Bxb3 23. dxc6 Nxc5 24. bxc5) 21... Nc3 $36 {[%emt 0:00:01][%mdl 2048] White is under pressure.} 22. Kd2 {[%emt 0:00:10]} Nxe2 {[%emt 0:00:04][%cal Oa7a5] And now ...a5! would win.} 23. a4 $2 {[%emt 0:00:01] Now White is beyond hope.} (23. Bf1 $1 $11) 23... Ba6 $19 {[%emt 0:00:01]} 24. b5 {[%emt 0:00:01]} cxb5 {[%emt 0:00:01]} 25. axb5 {[%emt 0:00:07]} (25. Rhb1 $142) 25... Bxb5 {[%emt 0:00:00][%cal Ob5c6]} 26. Bf1 {[%emt 0:00:07]} Nd4 {[%emt 0:00:02]} 27. Nxd4 {[%emt 0:00:05]} Bxf1 {[%emt 0:00:06]} ({Not} 27... exd4 $2 28. Bxb5 Nxc5 29. Kc2 Rxb5 30. Nd3) 28. Rhxf1 {[%emt 0:00:04]} Rxb2+ {[%emt 0:00:02]} 29. Kc3 {[%emt 0:00:01]} Rxh2 {[%emt 0:00:23]} ({And not} 29... exd4+ 30. Kxb2 Nxc5 31. Ra5 $11) 30. Ra6+ {[%emt 0:00:01]} Kf7 {[%emt 0:00:04]} 31. Nxf5 {[%emt 0:00:01]} Nxc5 {[%emt 0:00:01]} 32. Rc6 {[%emt 0:00:02]} Ne6 {[%emt 0:00:02]} (32... Na4+ $142 33. Kb3 Rb8+ 34. Ka3 Nb6 35. Nd6+ Ke7) 33. Nd6+ {[%emt 0:00:06]} (33. Rb1 $142 Nd8 34. Nd6+ Kg6 35. Ra6) 33... Ke7 {[%emt 0:00:00]} 34. Nf5+ {[%emt 0:00:02]} Kf6 {[%emt 0:00:01]} 35. g4 {[%emt 0:00:02]} d4+ {[%emt 0:00:02]} 36. Kd3 {[%emt 0:00:01]} Rb8 {[%emt 0:00:01]} 37. Nxd4 $2 {[%emt 0:00:09]} (37. Ra1 Rb6 38. Ra6) 37... exd4 {[%emt 0:00:01] Black is clearly winning.} 38. Re1 {[%emt 0:00:00]} Rb3+ {[%emt 0:00:05]} 39. Ke4 {[%emt 0:00:06]} Rb6 {[%emt 0:00:06]} 40. Rxb6 {[%emt 0:00:03]} axb6 {[%emt 0:00:00]} 41. Kd5 {[%emt 0:00:00]} Nf4+ {[%emt 0:00:02]} 42. Kxd4 {[%emt 0:00:01]} Rd2+ {[%emt 0:00:01]} 43. Kc3 {[%emt 0:00:01]} Rd3+ {[%emt 0:00:01]} 44. Kc4 {[%emt 0:00:01]} Rxf3 45. Kd4 {Weighted Error Value: White=0.79/Black=0.46} 0-1

[Event "Susha Chess Blitz Women 2022"]
[Site "Shusha"]
[Date "2022.09.24"]
[Round "1"]
[White "Beydullayeva, Govhar"]
[Black "Balajayeva, Khanim"]
[Result "1-0"]
[ECO "D26"]
[WhiteElo "2346"]
[BlackElo "2379"]
[Annotator "TA"]
[PlyCount "71"]
[EventDate "2022.09.24"]
[EventType "tourn"]
[EventCountry "AZE"]
[SourceTitle "playchess.com"]
[Source "ChessBase"]
[SourceQuality "1"]
[TimeControl "180+2"]

{[%evp 15,71,39,39,46,27,36,31,22,40,9,13,-44,0,-16,-15,-42,159,129,147,-162,1241,1212,1487,824,843,844,846,842,816,823,758,711,668,654,639,611,691,692,747,739,743,714,775,771,782,733,833,832,883,883,883,883,883,883,870,853,845,801]} 1. d4 {[%emt 0:00:01]} d5 {[%emt 0:00:00]} 2. c4 {[%emt 0:00:01]} dxc4 {[%emt 0:00:01]} 3. Nf3 {[%emt 0:00:02]} Nf6 {[%emt 0:00:01]} 4. e3 {[%emt 0:00:01]} e6 {[%emt 0:00:01]} 5. Bxc4 {[%emt 0:00:02]} a6 {[%emt 0:00:01]} 6. O-O {[%emt 0:00:06]} Nbd7 {[%emt 0:00:01]} 7. a4 {[%emt 0:00:14]} c5 {[%emt 0:00:01]} 8. Nc3 {[%emt 0:00:07]} Be7 {[%emt 0:00:04]} 9. e4 {[%emt 0:00:15] D27: Queen's Gambit Accepted: Classical main line: 7 e4!? and 7 a4.} cxd4 {[%emt 0:00:27]} 10. Qxd4 {[%emt 0:00:01]} Bc5 {[%emt 0:00:17]} 11. Qd3 {[%emt 0:00:14] White is slightly better.} Qc7 {[%emt 0:00:08] [#] Against e5} 12. Bg5 $146 {[%emt 0:00:36]} (12. Qe2 $5 {[%cal Re4e5]}) ({Predecessor:} 12. Rb1 Ng4 13. Qe2 Nge5 14. Bf4 Bd6 15. Nxe5 Bxe5 16. Bxe5 Nxe5 17. Ba2 O-O 18. Rbc1 {½-½ (60) Fedorova,A-Tyshkevich,J Smolensk 2001}) 12... Ng4 {[%emt 0:00:11]} 13. Bh4 {[%emt 0:00:50]} ({Better is} 13. Qe2 $11) 13... Nde5 {[%emt 0:00:29] ( -> ...Nxf3+)} 14. Nxe5 {[%emt 0:00:01]} Nxe5 {[%emt 0:00:01]} 15. Qg3 {[%emt 0:00:21]} g5 {[%emt 0:00:25]} (15... f6 $15 {keeps the upper hand.} 16. Qf4 Bd6) 16. Bxg5 {[%emt 0:00:08]} Rg8 {[%emt 0:00:02] [#] Strongly threatening ...f6.} 17. Rad1 $2 {[%emt 0:00:17][%mdl 8192]} (17. Be2 $1 $16 {stays on course.}) 17... h6 $4 {[%emt 0:00:30][%mdl 8192] [#] White leaves nothing to chance now.} (17... f6 $19 18. Qh3 Rxg5 19. Bxe6 Qc6 20. Bxc8 Qxc8 21. Qxc8+ Rxc8) 18. Qxe5 $3 $18 {[%mdl 512] White is clearly winning.} Bd6 {[%emt 0:00:16]} (18... Bb6 19. Rd8+) 19. Qxd6 {[%emt 0:00:07]} Qxd6 {[%emt 0:00:01]} 20. Rxd6 {[%emt 0:00:01][%csl Gg5][%cal Rd6d8]} Rxg5 {[%emt 0:00:02]} 21. Rfd1 {[%emt 0:00:01]} Ke7 {[%emt 0:00:03]} 22. Rd8 {[%emt 0:00:02]} Rc5 {[%emt 0:00:01]} 23. Bb3 {[%emt 0:00:03]} b5 {[%emt 0:00:02]} 24. axb5 {[%emt 0:00:06]} axb5 {[%emt 0:00:00]} 25. f3 {[%emt 0:00:08]} Ra7 {[%emt 0:00:21]} 26. Rh8 {[%emt 0:00:02]} Bd7 {[%emt 0:00:08]} 27. Rxh6 {[%emt 0:00:01]} b4 {[%emt 0:00:01]} 28. Ne2 {[%emt 0:00:01]} Ba4 {[%emt 0:00:08]} 29. Bxa4 {[%emt 0:00:02]} Rxa4 {[%emt 0:00:00]} 30. Rh8 {[%emt 0:00:05]} Ra2 {[%emt 0:00:01]} 31. Rd2 {[%emt 0:00:01]} b3 {[%emt 0:00:04]} 32. Rb8 {[%emt 0:00:01]} Rc2 {[%emt 0:00:06]} 33. Rxc2 {[%emt 0:00:05]} bxc2 {[%emt 0:00:01]} 34. Kf2 {[%emt 0:00:02]} Kd7 {[%emt 0:00:06]} 35. Rb3 {[%emt 0:00:02]} Ra1 {[%emt 0:00:06]} 36. Rc3 {[%emt 0:00:01] Weighted Error Value: White=0.50/Black=0.37} 1-0